bitfinex-derivatives/quotes_BNBF0:USTF0_20250211
["timestamp","ask_amount","ask_price","bid_price","bid_amount"]
[1739317483680,1.37664253,644.82,644.6,0.31026993]
[1739317483880,1.37664253,644.81,644.6,0.31026993]
[1739317484082,2.38447248,644.8,644.6,0.31026993]
[1739317484285,1.37664253,644.79,644.6,0.31026993]
[1739317484486,1.37664253,644.78,644.6,0.31026993]
[1739317484679,1.37664253,644.77,644.6,0.31026993]
[1739317484883,1.37660561,644.76,644.6,0.31026993]
[1739317485084,1.00782995,644.77,644.6,0.31026993]
[1739317485787,1.00782995,644.76,644.6,0.31026993]
[1739317486582,0.92856977,645.23,644.6,0.31026993]
[1739317486887,2.66543768,645.22,644.6,0.31026993]
[1739317487087,2.66544857,645.21,644.6,0.31026993]
[1739317487385,2.66544857,645.2,644.6,0.31026993]
[1739317487586,2.66544857,645.19,644.6,0.31026993]
[1739317487793,2.66544857,645.18,644.6,0.31026993]
[1739317487988,2.66544857,645.17,644.6,0.31026993]
[1739317488184,2.66544857,645.16,644.6,0.31026993]
[1739317488387,2.66544857,645.15,644.6,0.31026993]
[1739317488586,2.66544857,645.14,644.6,0.31026993]
[1739317488784,2.66544857,645.13,644.6,0.31026993]
[1739317488985,3.67530775,645.12,644.6,0.31026993]
[1739317489284,2.66559607,645.11,644.6,0.31026993]
[1739317489591,2.66559607,645.1,644.6,0.31026993]
[1739317489888,2.66559607,645.09,644.6,0.31026993]
[1739317490088,2.66559607,645.08,644.6,0.31026993]
[1739317490283,2.66559607,645.07,644.6,0.31026993]
[1739317490484,2.6655782,645.06,644.6,0.31026993]
[1739317490688,2.6655782,645.05,644.6,0.31026993]
[1739317490885,2.6655782,645.04,644.6,0.31026993]
[1739317491087,2.6655782,645.03,644.6,0.31026993]
[1739317491289,2.6655782,645.02,644.6,0.31026993]
[1739317491487,2.6655782,645.01,644.6,0.31026993]
[1739317491686,2.6655782,645.0,644.6,0.31026993]
[1739317491887,3.67543738,644.99,644.6,0.31026993]
[1739317492085,2.6655782,644.98,644.6,0.31026993]
[1739317492285,2.6655782,644.97,644.6,0.31026993]
[1739317492488,2.6655782,644.96,644.6,0.31026993]
[1739317492789,2.6655782,644.95,644.6,0.31026993]
[1739317492990,2.6655782,644.94,644.6,0.31026993]
[1739317493190,2.6655782,644.93,644.6,0.31026993]
[1739317493489,2.6655782,644.92,644.6,0.31026993]
[1739317493692,2.66566068,644.91,644.6,0.31026993]
[1739317493891,2.66566068,644.9,644.6,0.31026993]
[1739317494092,1.37651129,644.89,644.6,0.31026993]
[1739317494286,1.37651129,644.88,644.6,0.31026993]
[1739317494485,2.38637047,644.87,644.6,0.31026993]
[1739317494691,1.37651129,644.86,644.6,0.31026993]
[1739317494886,1.37651129,644.85,644.6,0.31026993]
[1739317495089,1.37662835,644.84,644.6,0.31026993]
[1739317495289,1.37662835,644.83,644.6,0.31026993]
[1739317495490,1.37662835,644.82,644.6,0.31026993]
[1739317495691,1.00985918,644.84,644.6,0.31026993]
[1739317495890,1.37668463,644.83,644.6,0.31026993]
[1739317496092,1.37668463,644.82,644.6,0.31026993]
[1739317496293,1.37668409,644.81,644.6,0.31026993]
[1739317496494,1.37668409,644.8,644.6,0.31026993]
[1739317496794,2.38654327,644.79,644.6,0.31026993]
[1739317496993,1.00985918,644.79,644.6,0.31026993]
[1739317497393,1.00985918,644.78,644.6,0.31026993]
[1739317498236,0.92861834,645.1,644.6,0.31026993]
[1739317498391,2.66589745,645.09,644.6,0.31026993]
[1739317498593,2.66589745,645.08,644.6,0.31026993]
[1739317498793,2.66589745,645.07,644.6,0.31026993]
[1739317499097,2.66589745,645.06,644.6,0.31026993]
[1739317499295,2.66589745,645.05,644.6,0.31026993]
[1739317499490,2.66589745,645.04,644.6,0.31026993]
[1739317499691,2.66589745,645.03,644.6,0.31026993]
[1739317499892,2.66589745,645.02,644.6,0.31026993]
[1739317500093,2.66589745,645.01,644.6,0.31026993]
[1739317500293,2.66589745,645.0,644.6,0.31026993]
[1739317500494,2.66589745,644.99,644.6,0.31026993]
[1739317500696,2.66589745,644.98,644.6,0.31026993]
[1739317500895,2.66589745,644.97,644.6,0.31026993]
[1739317501092,2.66589745,644.96,644.6,0.31026993]
[1739317501295,2.66589745,644.95,644.6,0.31026993]
[1739317501595,2.66580593,644.94,644.6,0.31026993]
[1739317501796,2.66580593,644.93,644.6,0.31026993]
[1739317501990,2.66580593,644.92,644.6,0.31026993]
[1739317502193,2.66580593,644.91,644.6,0.31026993]
[1739317502393,2.66580593,644.9,644.6,0.31026993]
[1739317502596,2.66580593,644.89,644.6,0.31026993]
[1739317502899,2.66583484,644.88,644.6,0.31026993]
[1739317503097,1.37663764,644.87,644.6,0.31026993]
[1739317503296,1.37663764,644.86,644.6,0.31026993]
[1739317503490,2.66595885,644.85,644.6,0.31026993]
[1739317503694,2.66595885,644.84,644.6,0.31026993]
[1739317503895,2.66595885,644.83,644.6,0.31026993]
[1739317504295,3.67612344,644.82,644.6,0.31026993]
[1739317504498,2.66608579,644.81,644.6,0.31026993]
[1739317504698,2.66608579,644.8,644.6,0.31026993]
[1739317504896,2.66608579,644.79,644.6,0.31026993]
[1739317505092,2.66608579,644.78,644.6,0.31026993]
[1739317505296,2.66608579,644.77,644.6,0.31026993]
[1739317505497,2.66608579,644.76,644.6,0.31026993]
[1739317505812,1.37663764,644.75,644.6,0.31026993]
[1739317506000,2.38667529,644.74,644.6,0.31026993]
[1739317506196,1.01003765,644.74,644.6,0.31026993]
[1739317506500,2.38656169,644.73,644.6,0.31026993]
[1739317506696,1.37652404,644.72,644.6,0.31026993]
[1739317506892,1.37652404,644.71,644.6,0.31026993]
[1739317507192,1.37652404,644.7,644.6,0.31026993]
[1739317507498,2.38656169,644.69,644.6,0.31026993]
[1739317507698,1.37652404,644.68,644.6,0.31026993]
[1739317507932,1.37652404,644.67,644.6,0.31026993]
[1739317508100,1.37652404,644.66,644.6,0.31026993]
[1739317508296,2.38656169,644.65,644.6,0.31026993]
[1739317508495,1.37652404,644.64,644.6,0.31026993]
[1739317508697,1.37652404,644.63,644.6,0.31026993]
[1739317508899,2.38656169,644.62,644.6,0.31026993]
[1739317509096,1.01003765,644.62,644.6,0.31026993]
[1739317509295,1.01003765,644.61,644.6,0.31026993]
[1739317510493,0.92798371,644.92,644.6,0.31026993]
[1739317510697,2.66313958,644.91,644.6,0.31026993]
[1739317510895,4.60016676,644.9,644.6,0.31026993]
[1739317511098,2.66313958,644.89,644.6,0.31026993]
[1739317511302,2.66313958,644.88,644.6,0.31026993]
[1739317511499,3.67218305,644.87,644.6,0.31026993]
[1739317511699,2.66313958,644.86,644.6,0.31026993]
[1739317511898,0.92798371,644.84,644.6,0.31026993]
[1739317512100,0.92798371,644.79,644.6,0.31026993]
[1739317512297,1.37519394,644.78,644.6,0.31026993]
[1739317512496,0.92702688,644.75,644.6,0.31026993]
[1739317512697,0.92702688,644.68,644.6,0.31026993]
[1739317513003,3.67112915,644.67,644.6,0.31026993]
[1739317513244,2.66208568,644.66,644.6,0.31026993]
[1739317513397,2.66208568,644.65,644.6,0.31026993]
[1739317513597,2.66208568,644.64,644.6,0.31026993]
[1739317513797,3.67112915,644.63,644.6,0.31026993]
[1739317514005,2.66208568,644.62,644.6,0.31026993]
[1739317514198,2.66208568,644.61,644.6,0.31026993]
[1739317514602,3.67112915,644.61,644.6,0.31026993]
[1739317515298,2.38423741,644.61,644.6,0.31026993]
[1739317515500,3.66794261,644.61,644.6,0.31026993]
[1739317516205,3.66785218,644.61,644.6,0.31026993]
[1739317518101,3.66670535,644.61,644.6,0.31026993]
[1739317520210,3.66560508,644.61,644.6,0.31026993]
[1739317520807,3.65740049,644.61,644.6,0.31026993]
[1739317522410,1.00904347,644.61,644.6,0.31026993]
[1739317522610,3.65517884,644.61,644.6,0.31026993]
[1739317524512,3.65343143,644.61,644.6,0.31026993]
[1739317531016,2.37450958,644.61,644.6,0.31026993]
[1739317532718,2.37268515,644.61,644.6,0.31026993]
[1739317534912,2.37266141,644.61,644.6,0.31026993]
[1739317535418,1.00904347,644.61,644.6,0.31026993]
[1739317539515,2.37303826,644.61,644.6,0.31026993]
[1739317540513,3.65065042,644.61,644.6,0.31026993]
[1739317542323,1.00904347,644.61,644.6,0.31026993]
[1739317544723,2.3734773,644.61,644.6,0.31026993]
[1739317546324,3.65172589,644.61,644.6,0.31026993]
[1739317549327,3.65283459,644.61,644.6,0.31026993]
[1739317551327,3.6540441,644.61,644.6,0.31026993]
[1739317554526,2.374586,644.61,644.6,0.31026993]
[1739317554731,1.00904347,644.61,644.6,0.31026993]
[1739317554960,2.37587304,644.61,644.6,0.31026993]
[1739317555530,2.3763399,644.61,644.6,0.31026993]
[1739317557230,1.00904347,644.61,644.6,0.31026993]
[1739317559228,2.37766061,644.61,644.6,0.31026993]
[1739317563236,2.38041159,644.61,644.6,0.31026993]
[1739317565239,3.66639537,644.61,644.6,0.31026993]
[1739317569262,2.29398095,644.61,644.6,0.31026993]
[1739317569435,3.6685167,644.61,644.6,0.31026993]
[1739317569841,3.67090538,644.61,644.6,0.31026993]
[1739317571437,3.6728026,644.61,644.6,0.31026993]
[1739317578142,3.67294598,644.61,644.6,0.31026993]
[1739317581752,3.67315336,644.61,644.6,0.31026993]
[1739317582650,3.67333053,644.61,643.64,1.15564507]
[1739317582851,0.9282142,644.55,643.66,0.31072305]
[1739317583047,3.59250126,644.54,643.66,0.31072305]
[1739317583276,2.66428706,644.53,643.67,1.620816]
[1739317583450,2.66428706,644.52,643.69,0.31070857]
[1739317583647,2.66428706,644.51,643.88,1.15564507]
[1739317583848,3.67333053,644.5,643.88,1.15564507]
[1739317584054,3.67333053,644.5,643.89,0.31061206]
[1739317584055,2.66428706,644.49,643.89,0.31061206]
[1739317584361,2.66428706,644.48,643.89,0.31061206]
[1739317584552,3.67333053,644.47,643.89,0.31061206]
[1739317584749,2.66428706,644.46,643.89,0.31061206]
[1739317584947,2.66428706,644.45,643.89,0.31061206]
[1739317585148,2.66428706,644.44,643.89,0.31061206]
[1739317585351,2.66428706,644.43,643.89,0.31061206]
[1739317585548,2.66428706,644.42,644.0,1.15564507]
[1739317585753,2.66428706,644.41,644.01,0.31055418]
[1739317585955,2.66428706,644.4,644.01,0.31055418]
[1739317586151,2.66428706,644.39,644.01,0.31055418]
[1739317586351,1.28853444,644.38,644.01,0.31055418]
[1739317586652,2.66457987,644.37,644.01,0.31055418]
[1739317586848,1.37604543,644.36,644.01,0.31055418]
[1739317587056,1.37604543,644.35,644.01,0.31055418]
[1739317587256,2.3850889,644.34,644.01,0.31055418]
[1739317587459,1.37604543,644.33,644.01,0.31055418]
[1739317587658,1.00904347,644.34,644.01,0.31055418]
[1739317587849,0.9282142,644.54,644.01,0.31055418]
[1739317587850,2.38517086,644.33,644.01,0.31055418]
[1739317588055,1.00904347,644.33,644.01,0.31055418]
[1739317588252,1.00904347,644.32,644.01,0.31055418]
[1739317588455,1.00904347,644.31,644.01,0.31055418]
[1739317588958,0.92846429,644.54,644.01,0.31055418]
[1739317589154,3.59365872,644.53,644.01,0.31055418]
[1739317589358,2.66519443,644.52,644.01,0.31055418]
[1739317589670,2.66519443,644.51,644.01,1.46619925]
[1739317589858,2.66519443,644.5,644.01,1.46619925]
[1739317590061,2.66519443,644.49,644.01,1.46619925]
[1739317590255,3.6710839,644.48,644.01,1.46619925]
[1739317590457,2.66551295,644.47,644.01,1.46619925]
[1739317590655,2.66551295,644.46,644.01,1.46619925]
[1739317590858,3.6710839,644.45,644.01,1.46619925]
[1739317591063,2.66551295,644.44,644.01,1.46619925]
[1739317591259,3.6710839,644.43,644.01,1.46619925]
[1739317591456,1.37638681,644.42,644.01,1.46619925]
[1739317591756,1.00557095,644.43,644.01,1.46619925]
[1739317591962,1.37626418,644.42,644.01,1.46619925]
[1739317592162,1.00557095,644.42,644.01,1.46619925]
[1739317592665,1.37626954,644.41,644.01,1.46619925]
[1739317592865,1.00557095,644.41,644.01,1.46619925]
[1739317593059,1.00557095,644.4,644.01,1.46619925]
[1739317593660,0.92863932,644.8,644.01,1.46619925]
[1739317593661,1.00557095,644.39,644.01,1.46619925]
[1739317594258,0.92847917,644.8,644.01,1.46619925]
[1739317594465,2.6651452,644.79,644.01,1.46619925]
[1739317594667,3.67062588,644.78,644.01,0.31055418]
[1739317594862,2.66515002,644.77,644.01,0.31055418]
[1739317595072,2.66515002,644.76,644.01,0.31055418]
[1739317595259,3.6706307,644.75,644.01,0.31055418]
[1739317595464,2.66515002,644.74,644.01,0.31055418]
[1739317595661,1.00548068,644.75,644.01,0.31055418]
[1739317595662,2.66515002,644.73,644.01,0.31055418]
[1739317595863,2.66515002,644.72,644.01,0.31055418]
[1739317596063,2.66515002,644.71,644.01,0.31055418]
[1739317596264,2.66515002,644.7,644.01,0.31055418]
[1739317596465,2.66512637,644.69,644.01,0.31055418]
[1739317596665,2.66512637,644.68,644.01,0.31055418]
[1739317596966,2.66512637,644.67,644.01,0.31055418]
[1739317597165,2.66512637,644.66,644.01,0.31055418]
[1739317597366,2.66512637,644.65,644.01,0.31055418]
[1739317597566,3.67060705,644.64,644.01,0.31055418]
[1739317597763,2.66512637,644.63,644.01,0.31055418]
[1739317597965,2.66512637,644.62,644.01,0.31055418]
[1739317598169,2.66512637,644.61,644.01,0.31055418]
[1739317598370,2.66512637,644.6,644.01,0.31055418]
[1739317598666,2.66512637,644.59,644.01,0.31055418]
[1739317598866,2.66512637,644.58,644.01,0.31055418]
[1739317599070,2.66512637,644.57,644.01,0.31055418]
[1739317599270,3.67060705,644.56,644.01,0.31055418]
[1739317599467,2.66512637,644.55,644.01,0.31055418]
[1739317599771,3.67060705,644.54,644.01,0.31055418]
[1739317599972,2.66512637,644.53,644.01,0.31055418]
[1739317600171,2.66512637,644.52,644.01,0.31055418]
[1739317600466,1.00548068,644.54,644.01,0.31055418]
[1739317600671,1.00548068,644.51,644.01,0.31055418]
[1739317600872,2.66525568,644.5,644.01,0.31055418]
[1739317601071,1.3762722,644.49,644.01,0.31055418]
[1739317601265,2.66522249,644.48,644.01,0.31055418]
[1739317601467,1.3762722,644.47,644.01,0.31055418]
[1739317601665,1.3762722,644.46,644.01,0.31055418]
[1739317601865,1.00548068,644.47,644.01,0.31055418]
[1739317602270,0.92851839,644.83,644.01,0.31055418]
[1739317602468,2.66460387,644.82,644.01,0.31055418]
[1739317602666,2.66460544,644.81,644.01,0.31055418]
[1739317602867,3.669835,644.8,644.01,0.31055418]
[1739317603173,2.66457182,644.79,644.01,0.31055418]
[1739317603374,1.00522956,644.8,644.01,0.31055418]
[1739317603375,2.66457182,644.78,644.01,0.31055418]
[1739317603574,2.66457182,644.77,644.01,0.31055418]
[1739317603876,2.66457182,644.76,644.01,0.31055418]
[1739317604073,2.66457182,644.75,644.01,0.31055418]
[1739317604273,2.66457182,644.74,644.01,0.31055418]
[1739317604575,3.66980138,644.73,644.01,0.31055418]
[1739317604771,2.66425227,644.72,644.01,0.31055418]
[1739317604970,1.00522956,644.73,644.01,0.31055418]
[1739317604971,2.66425227,644.71,644.01,0.31055418]
[1739317605168,3.66948183,644.7,644.01,0.31055418]
[1739317605475,2.66425227,644.69,644.01,0.31055418]
[1739317605674,3.66948183,644.68,644.01,0.31055418]
[1739317605975,2.66425227,644.67,644.01,0.31055418]
[1739317606172,2.66425227,644.66,644.01,0.31055418]
[1739317606374,1.37594006,644.65,644.01,0.31055418]
[1739317606575,2.38116962,644.64,644.01,0.31055418]
[1739317606776,1.37594006,644.63,644.01,0.31055418]
[1739317607089,1.00522956,644.64,644.01,0.31055418]
[1739317607275,1.00522956,644.62,644.01,0.31055418]
[1739317607678,1.00522956,644.61,644.01,0.31055418]
[1739317608073,0.92801638,644.96,644.01,0.31055418]
[1739317608273,2.66210486,644.95,644.01,0.31055418]
[1739317608471,2.66210486,644.94,644.01,0.31055418]
[1739317608678,2.66210486,644.93,644.01,0.31055418]
[1739317608973,2.66210486,644.92,644.01,0.31055418]
[1739317609173,2.66210486,644.91,644.01,0.31055418]
[1739317609371,2.66210486,644.9,644.01,0.31055418]
[1739317609675,2.66210486,644.89,644.01,0.31055418]
[1739317609876,2.66210486,644.88,644.01,0.31055418]
[1739317610077,2.66210486,644.87,644.01,0.31055418]
[1739317610273,2.66210486,644.86,644.01,0.31055418]
[1739317610475,2.66210486,644.85,644.01,0.31055418]
[1739317610672,2.66210486,644.84,644.01,0.31055418]
[1739317610873,1.00407761,644.87,644.01,0.31055418]
[1739317610874,2.66210486,644.83,644.01,0.31055418]
[1739317611074,2.66210486,644.82,644.01,0.31055418]
[1739317611303,1.28742271,644.81,644.01,0.31055418]
[1739317611479,2.66154791,644.8,644.01,0.31055418]
[1739317611679,3.66543369,644.79,644.01,0.31055418]
[1739317611879,2.66154791,644.78,644.01,0.31055418]
[1739317612175,3.66543369,644.77,644.01,0.31055418]
[1739317612377,2.66154791,644.76,644.01,0.31055418]
[1739317612576,2.66154791,644.75,644.01,0.31055418]
[1739317612775,2.66154791,644.74,644.01,0.31055418]
[1739317613076,3.66458547,644.73,644.01,0.31055418]
[1739317613275,2.66069969,644.72,644.01,0.31055418]
[1739317613476,2.66069969,644.71,644.01,0.31055418]
[1739317613678,2.66069969,644.7,644.01,0.31055418]
[1739317613876,2.66069969,644.69,644.01,0.31055418]
[1739317614079,3.66458547,644.68,644.01,0.31055418]
[1739317614279,2.66069969,644.67,644.01,0.31055418]
[1739317614478,2.66069969,644.66,644.01,0.31055418]
[1739317614677,1.37394112,644.65,644.01,0.31055418]
[1739317614980,1.37394112,644.64,644.01,0.31055418]
[1739317615181,1.00388578,644.65,644.01,0.31055418]
[1739317615182,1.37394112,644.63,644.01,0.31055418]
[1739317615377,1.37394112,644.62,644.01,0.31055418]
[1739317615582,1.37394112,644.61,644.01,0.31055418]
[1739317615783,1.37394112,644.6,644.01,0.31055418]
[1739317615974,1.00388578,644.6,644.01,0.31055418]
[1739317616377,1.00388578,644.59,644.01,0.31055418]
[1739317616782,2.37759663,644.58,644.01,0.31055418]
[1739317616982,1.37371085,644.57,644.01,0.31055418]
[1739317617183,1.00388578,644.58,644.01,0.31055418]
[1739317617379,1.37370112,644.57,644.01,0.31055418]
[1739317617619,1.00388578,644.57,644.01,0.31055418]
[1739317618183,1.00388578,644.56,644.01,0.31055418]
[1739317618582,1.00388578,644.55,644.01,0.31055418]
[1739317619387,1.00388578,644.54,644.01,0.31055418]
[1739317619584,0.92667055,644.94,644.01,0.31055418]
[1739317619780,2.66006389,644.93,644.01,0.31055418]
[1739317619983,2.66006389,644.92,644.01,0.31055418]
[1739317620187,2.66006389,644.91,644.01,0.31055418]
[1739317620383,2.66006389,644.9,644.01,0.31055418]
[1739317620585,2.66006389,644.89,644.01,0.31055418]
[1739317620801,2.66006389,644.88,644.01,0.31055418]
[1739317620986,2.66006389,644.87,644.01,0.31055418]
[1739317621184,1.00353348,644.91,644.01,0.31055418]
[1739317621185,2.66006389,644.86,644.01,0.31055418]
[1739317621387,2.66006389,644.85,644.01,0.31055418]
[1739317621584,2.66006389,644.84,644.01,0.31055418]
[1739317621786,2.66006389,644.83,644.01,0.31055418]
[1739317621987,3.66359737,644.82,644.01,0.31055418]
[1739317622185,2.66006389,644.81,644.01,0.31055418]
[1739317622388,2.66006389,644.8,644.01,0.31055418]
[1739317622587,2.66006389,644.79,644.01,0.31055418]
[1739317622924,2.66006585,644.78,644.01,0.31055418]
[1739317623087,3.66359933,644.77,644.01,0.31055418]
[1739317623388,2.66006585,644.76,644.01,0.31055418]
[1739317623585,3.66359933,644.75,644.01,0.31055418]
[1739317623789,2.66006585,644.74,644.01,0.31055418]
[1739317624085,2.66006585,644.73,644.01,0.31055418]
[1739317624289,2.66006585,644.72,644.01,0.31055418]
[1739317624590,2.66006585,644.71,644.01,0.31055418]
[1739317624791,2.66006585,644.7,644.01,0.31055418]
[1739317625085,2.66006585,644.69,644.01,0.31055418]
[1739317625290,2.66006585,644.68,644.01,0.31055418]
[1739317625491,2.66006585,644.67,644.01,0.31055418]
[1739317625790,3.66359933,644.66,644.01,0.31055418]
[1739317626136,2.66006585,644.65,644.01,0.31055418]
[1739317626390,2.66006585,644.64,644.01,0.31055418]
[1739317626590,2.66006585,644.63,644.01,0.31055418]
[1739317626790,2.66006585,644.62,644.01,0.31055418]
[1739317626990,2.66006585,644.61,644.01,0.31055418]
[1739317627213,2.66006585,644.6,644.01,0.31055418]
[1739317627391,3.66375967,644.59,644.01,0.31055418]
[1739317627593,2.66022619,644.58,644.01,0.31055418]
[1739317627792,1.37368236,644.57,644.01,0.31055418]
[1739317627992,1.37368236,644.56,644.01,0.31055418]
[1739317628186,1.37368236,644.55,644.01,0.31055418]
[1739317628391,1.37368236,644.54,644.01,0.31055418]
[1739317628585,1.37368236,644.53,644.01,0.31055418]
[1739317628791,1.37368236,644.52,644.01,0.31055418]
[1739317628988,1.00353348,644.52,644.01,0.31055418]
[1739317629590,1.00353348,644.51,644.01,0.31055418]
[1739317629993,0.92675373,644.79,644.01,0.31055418]
[1739317630293,1.37359528,644.78,644.01,0.31055418]
[1739317630494,3.66358868,644.77,644.01,0.31055418]
[1739317630694,2.66004954,644.76,644.01,0.31055418]
[1739317630896,2.66004954,644.75,644.01,0.31055418]
[1739317631088,2.66004954,644.74,644.01,0.31055418]
[1739317631290,2.66004954,644.73,644.01,0.31055418]
[1739317631492,1.37359528,644.72,644.01,0.31055418]
[1739317631794,1.37359528,644.71,644.01,0.31055418]
[1739317631994,1.37359528,644.7,644.04,1.15564507]
[1739317632190,1.37359528,644.69,644.05,0.31053489]
[1739317632395,1.37359528,644.68,644.05,0.31053489]
[1739317632593,1.37359528,644.67,644.05,0.31053489]
[1739317632793,2.37713442,644.66,644.05,0.31053489]
[1739317632996,1.37359528,644.65,644.05,0.31053489]
[1739317633191,1.37359528,644.64,644.05,0.31053489]
[1739317633394,1.37359528,644.63,644.05,0.31053489]
[1739317633595,2.37713442,644.62,644.05,0.31053489]
[1739317633795,1.37359528,644.61,644.05,0.31053489]
[1739317633995,1.37359528,644.6,644.05,0.31053489]
[1739317634192,1.00353914,644.62,644.05,0.31053489]
[1739317634394,0.92675373,644.88,644.05,0.31053489]
[1739317634395,2.37696653,644.61,644.05,0.31053489]
[1739317634633,1.37342739,644.6,644.05,0.31053489]
[1739317634797,1.00353914,644.61,644.05,0.31053489]
[1739317634998,1.37339555,644.6,644.05,0.31053489]
[1739317635195,1.00353914,644.6,644.05,0.31053489]
[1739317635700,1.00336187,644.59,644.05,0.31053489]
[1739317635998,1.00336187,644.58,644.05,0.31053489]
[1739317636595,1.00336187,644.57,644.09,1.15564507]
[1739317636801,1.00336187,644.57,644.1,0.31051079]
[1739317637200,0.92651546,644.89,644.1,0.31051079]
[1739317637401,1.37349168,644.88,644.1,0.31051079]
[1739317637602,1.37349168,644.87,644.1,0.31051079]
[1739317637808,1.37349168,644.86,644.1,0.31051079]
[1739317638003,2.3769814,644.85,644.1,0.31051079]
[1739317638199,1.37349168,644.84,644.1,0.31051079]
[1739317638403,1.37349168,644.83,644.1,0.31051079]
[1739317638599,1.37349168,644.82,644.13,1.15564507]
[1739317638803,1.37349168,644.81,644.14,0.3104915]
[1739317638999,1.37349168,644.8,644.14,0.3104915]
[1739317639202,1.37349168,644.79,644.14,0.3104915]
[1739317639401,1.00348972,644.83,644.14,0.3104915]
[1739317639402,2.66005843,644.78,644.14,0.3104915]
[1739317639606,2.66005843,644.77,644.14,0.3104915]
[1739317639801,2.66005843,644.76,644.14,0.3104915]
[1739317640005,2.66005843,644.75,644.14,0.3104915]
[1739317640200,2.66005843,644.74,644.14,0.3104915]
[1739317640501,2.66005843,644.73,644.14,0.3104915]
[1739317640702,2.66005843,644.72,644.14,0.3104915]
[1739317640904,2.66005843,644.71,644.14,0.3104915]
[1739317641103,2.66005843,644.7,644.14,0.3104915]
[1739317641304,2.66005843,644.69,644.14,0.3104915]
[1739317641504,1.00348972,644.72,644.14,0.3104915]
[1739317641505,2.66005843,644.68,644.14,0.3104915]
[1739317641705,2.66005843,644.67,644.14,0.3104915]
[1739317642007,2.66005843,644.66,644.14,0.3104915]
[1739317642208,2.66005843,644.65,644.14,0.3104915]
[1739317642409,1.37349168,644.64,644.22,1.15564507]
[1739317642601,1.37349168,644.63,644.23,0.31044813]
[1739317642805,2.37765324,644.62,644.23,0.31044813]
[1739317643102,1.37416352,644.61,644.23,0.31044813]
[1739317643309,1.37416352,644.6,644.23,0.31044813]
[1739317643607,1.00348972,644.6,644.23,0.31044813]
[1739317644106,1.00348972,644.59,644.23,0.31044813]
[1739317644709,1.00348972,644.59,644.23,1.4660932]
[1739317645210,0.92710018,644.84,644.23,1.4660932]
[1739317645407,2.66158209,644.83,644.23,1.4660932]
[1739317645605,3.66595934,644.82,644.23,1.4660932]
[1739317645804,2.66174379,644.81,644.23,1.4660932]
[1739317646005,2.66174379,644.8,644.23,1.4660932]
[1739317646209,1.37456437,644.79,644.23,1.4660932]
[1739317646410,2.66194005,644.78,644.23,1.4660932]
[1739317646605,2.66194005,644.77,644.23,1.4660932]
[1739317646805,2.66194005,644.76,644.23,1.4660932]
[1739317647010,2.66194005,644.75,644.23,1.4660932]
[1739317647210,2.66194005,644.74,644.23,1.4660932]
[1739317647405,2.66194005,644.73,644.23,0.31044813]
[1739317647613,2.66194005,644.72,644.23,0.31044813]
[1739317647914,2.66194005,644.71,644.23,0.31044813]
[1739317648213,3.6661556,644.7,644.23,0.31044813]
[1739317648407,2.66194005,644.69,644.23,0.31044813]
[1739317648610,2.66194005,644.68,644.23,0.31044813]
[1739317648807,1.37456437,644.67,644.23,0.31044813]
[1739317649008,1.37456437,644.66,644.23,0.31044813]
[1739317649306,1.37456437,644.65,644.23,0.31044813]
[1739317649510,2.37877992,644.64,644.23,0.31044813]
[1739317649710,1.37560886,644.63,644.23,0.31044813]
[1739317649908,1.37560886,644.62,644.23,0.31044813]
[1739317650107,1.37560886,644.61,644.23,0.31044813]
[1739317650312,1.37560886,644.6,644.23,0.31044813]
[1739317650511,1.37560886,644.59,644.23,0.31044813]
[1739317650710,1.37560886,644.58,644.23,0.31044813]
[1739317650914,2.37982441,644.57,644.23,0.31044813]
[1739317651116,1.37560886,644.56,644.23,0.31044813]
[1739317651311,2.37982441,644.55,644.23,0.31044813]
[1739317651507,1.37560886,644.54,644.23,0.31044813]
[1739317651711,1.37560886,644.53,644.23,0.31044813]
[1739317652014,1.37607859,644.52,644.23,0.31044813]
[1739317652210,1.00421555,644.54,644.23,0.31044813]
[1739317652211,1.37607859,644.51,644.23,0.31044813]
[1739317652408,1.37607859,644.5,644.23,0.31044813]
[1739317652615,1.37607859,644.49,644.23,0.31044813]
[1739317652811,1.37607859,644.48,644.23,0.31044813]
[1739317653015,1.37607859,644.47,644.23,0.31044813]
[1739317653209,1.37607859,644.46,644.23,0.31044813]
[1739317653416,1.37607859,644.45,644.23,0.31044813]
[1739317653612,1.37607859,644.44,644.23,0.31044813]
[1739317653814,1.37623151,644.43,644.23,0.31044813]
[1739317654115,1.00421555,644.44,644.23,0.31044813]
[1739317654309,1.37623255,644.43,644.23,0.31044813]
[1739317654512,1.37621102,644.42,644.23,0.31044813]
[1739317654715,1.00421555,644.43,644.23,0.31044813]
[1739317654915,1.00421555,644.41,644.23,0.31044813]
[1739317655341,1.00421555,644.4,644.23,0.31044813]
[1739317655915,1.00421555,644.39,644.23,0.31044813]
[1739317656511,0.92846914,644.76,644.23,0.31044813]
[1739317656714,0.92846914,644.73,644.23,0.31044813]
[1739317656911,2.66515702,644.72,644.23,0.31044813]
[1739317657118,2.66515702,644.71,644.23,0.31044813]
[1739317657318,2.66515702,644.7,644.23,0.31044813]
[1739317657618,3.67067249,644.69,644.23,0.31044813]
[1739317657812,3.67067249,644.68,644.23,0.31044813]
[1739317658018,2.66515702,644.67,644.23,0.31044813]